[Event "WYCC 2018 G18"]
[Site "Halkidiki"]
[Date "2018.10.24"]
[Round "6"]
[White "Bauyrzhan, Arnash"]
[Black "Garcia Martin, Marta"]
[Result "0-1"]
[ECO "B42"]
[WhiteElo "2011"]
[BlackElo "2329"]
[Annotator "NA"]
[PlyCount "116"]
[EventDate "2018.10.20"]
[EventType "swiss"]
[EventCountry "GRE"]
[SourceTitle "playchess.com"]
[Source "ChessBase"]
[SourceQuality "1"]
[TimeControl "40/5400+30:1800+30"]

1. e4 {[%emt 0:00:00]} c5 {[%emt 0:00:00]} 2. Nf3 {[%emt 0:00:14]} e6 {[%emt 0:00:00]} 3. d4 {[%emt 0:00:25]} cxd4 {[%emt 0:00:00]} 4. Nxd4 {[%emt 0:00:12]} a6 {[%emt 0:00:00]} 5. Bd3 {[%emt 0:00:56]} Nf6 {[%emt 0:00:00]} 6. O-O {[%emt 0:00:54]} e5 {[%emt 0:00:05]} 7. Nf3 {[%emt 0:04:47] B42: Sizilianisch (Paulsen-Variante)} (7. Nb3 d6 8. c4 Be7 9. Nc3 O-O 10. f3 Be6 11. Be3 Nbd7 12. Qd2 a5 13. Nd5 a4 14. Nc1 Nc5 15. Nxe7+ Qxe7 {1-0 (41) Wang,H (2678)-Pantsulaia,L (2607) Subic Bay 2016}) 7... Nc6 {[%emt 0:00:07]} 8. c4 {[%emt 0:02:00]} Bc5 {[%emt 0:01:04] LiveBook: 9 Games} 9. Nc3 {[%emt 0:03:09]} d6 {[%emt 0:00:45]} 10. h3 {[%emt 0:00:59]} h6 {[%emt 0:03:39]} 11. Qe2 {[%emt 0:02:14]} g5 $146 {[%emt 0:17:47]} ({Vorgänger:} 11... O-O 12. Be3 Nd7 13. Nd5 Bxe3 14. Qxe3 Nc5 {1-0 (56) Godzwon,I (2205)-Fus,J (2103) Warsaw 2017}) 12. Be3 {[%emt 0:08:08]} g4 {[%emt 0:06:45]} 13. hxg4 {[%emt 0:02:32]} Bxg4 {[%emt 0:01:03]} 14. Bxc5 {[%emt 0:01:07]} dxc5 {[%emt 0:00:05]} 15. Qe3 {[%emt 0:00:21]} Qd6 {[%emt 0:09:24]} 16. Be2 {[%emt 0:06:04]} Bxf3 {[%emt 0:03:16]} 17. Bxf3 {[%emt 0:01:31]} O-O-O {[%emt 0:03:13]} 18. Nd5 {[%emt 0:08:14]} Nd4 {[%emt 0:01:15]} 19. Rfc1 {[%emt 0:03:30]} Kb8 {[%emt 0:03:11]} 20. a3 {[%emt 0:05:08]} Nxd5 {[%emt 0:12:17]} 21. cxd5 {[%emt 0:00:51]} h5 {[%emt 0:08:59]} 22. Rc3 {[%emt 0:06:13]} Rc8 {[%emt 0:03:17]} 23. Rac1 {[%emt 0:00:32]} b5 {[%emt 0:03:12]} 24. Qg5 {[%emt 0:06:43]} Kb7 {[%emt 0:06:45]} 25. Bd1 {[%emt 0:08:24]} Kb6 {[%emt 0:01:27]} 26. Bf3 {[%emt 0:09:19]} a5 {[%emt 0:02:40]} 27. b4 {[%emt 0:06:39]} axb4 {[%emt 0:03:24]} 28. axb4 {[%emt 0:00:02]} c4 {[%emt 0:00:06]} 29. Ra1 {[%emt 0:00:44]} Ra8 {[%emt 0:09:53]} 30. Rxa8 {[%emt 0:01:29]} Rxa8 {[%emt 0:00:03]} 31. Bxh5 {[%emt 0:01:14]} Qxb4 {[%emt 0:01:08]} 32. Qh6+ {[%emt 0:05:13]} Ka5 {[%emt 0:00:26]} 33. Qe3 {[%emt 0:01:43]} Nb3 {[%emt 0:00:34]} 34. Bd1 {[%emt 0:00:41]} Nc5 {[%emt 0:00:29]} 35. Ra3+ {[%emt 0:01:40]} Na4 {[%emt 0:00:04]} 36. Bxa4 {[%emt 0:02:13]} bxa4 {[%emt 0:00:04]} 37. g3 {[%emt 0:00:32]} Kb5 {[%emt 0:01:19]} 38. Kg2 {[%emt 0:00:20]} Ra6 {[%emt 0:00:36]} 39. Qc1 {[%emt 0:01:20]} Rb6 {[%emt 0:00:30]} 40. Rf3 {[%emt 0:00:00]} f6 {[%emt 0:00:00]} 41. Rc3 {[%emt 0:04:58]} Qc5 {[%emt 0:09:35]} 42. Ra3 {[%emt 0:09:10]} Qd4 {[%emt 0:04:48]} 43. Qc2 {[%emt 0:01:14]} Ra6 {[%emt 0:00:03]} 44. Qb1+ {[%emt 0:05:36]} Ka5 {[%emt 0:01:42]} 45. Qe1+ {[%emt 0:01:21]} Kb5 $11 {[%emt 0:00:05]} 46. Qb1+ {[%emt 0:00:36]} Kc5 {[%emt 0:00:26]} 47. Qc2 {[%emt 0:03:28]} Kb4 {[%emt 0:01:46]} 48. Ra2 {[%emt 0:01:49]} c3 {[%emt 0:01:59]} 49. g4 {[%emt 0:05:04]} a3 {[%emt 0:05:02]} 50. Ra1 {[%emt 0:01:31]} a2 {[%emt 0:01:59]} 51. Rxa2 {[%emt 0:01:28]} Rxa2 {[%emt 0:00:04]} 52. Qxa2 {[%emt 0:00:03]} Qxe4+ {[%emt 0:00:09]} 53. f3 {[%emt 0:00:42]} Qd3 {[%emt 0:00:27]} 54. Kf2 {[%emt 0:00:56]} c2 {[%emt 0:01:44]} 55. Qb2+ {[%emt 0:00:02]} Kc5 {[%emt 0:00:48]} 56. Qc1 {[%emt 0:01:04]} Kxd5 {[%emt 0:00:27]} 57. Ke1 {[%emt 0:00:12]} Kd4 {[%emt 0:03:41]} 58. Qb2+ {[%emt 0:00:51]} Qc3+ {[%emt 0:00:08]} 0-1

[Event "WYCC 2018 G18"]
[Site "Halkidiki"]
[Date "2018.10.24"]
[Round "6"]
[White "Du, Yuxin"]
[Black "Sliwicka, Alicja"]
[Result "1/2-1/2"]
[ECO "B40"]
[WhiteElo "2011"]
[BlackElo "2264"]
[Annotator "NA"]
[PlyCount "99"]
[EventDate "2018.10.20"]
[EventType "swiss"]
[EventCountry "GRE"]
[SourceTitle "playchess.com"]
[Source "ChessBase"]
[SourceQuality "1"]
[TimeControl "40/5400+30:1800+30"]

1. e4 {[%emt 0:00:00]} c5 {[%emt 0:00:00]} 2. Nf3 {[%emt 0:00:00]} e6 {[%emt 0:00:00]} 3. g3 {[%emt 0:00:21]} Nc6 {[%emt 0:00:00]} 4. Bg2 {[%emt 0:00:06]} Nf6 {[%emt 0:00:00]} 5. Qe2 {[%emt 0:00:24]} e5 {[%emt 0:00:04]} 6. O-O {[%emt 0:04:31]} Be7 {[%emt 0:00:09]} 7. Nc3 {[%emt 0:05:06] LiveBook: 13 Games} d6 {[%emt 0:04:26]} 8. Nd5 {[%emt 0:05:21]} O-O {[%emt 0:01:59]} 9. c3 {[%emt 0:02:48]} Re8 {[%emt 0:04:08]} 10. Nxe7+ {[%emt 0:06:00]} Qxe7 {[%emt 0:01:23]} 11. Nh4 {[%emt 0:07:27]} Be6 {[%emt 0:04:57]} 12. d3 $11 {[%emt 0:03:27]} h6 {[%emt 0:01:56]} 13. Nf5 {[%emt 0:19:46]} Bxf5 {[%emt 0:03:22]} 14. exf5 {[%emt 0:00:06]} d5 {[%emt 0:03:39]} 15. f3 {[%emt 0:08:28]} b5 {[%emt 0:07:18]} 16. Bd2 {[%emt 0:20:34]} Rab8 {[%emt 0:03:14]} 17. Rae1 {[%emt 0:05:10]} Qd7 {[%emt 0:03:27]} 18. g4 {[%emt 0:00:56]} b4 {[%emt 0:03:59]} 19. Bc1 {[%emt 0:01:19]} Na5 {[%emt 0:07:58]} 20. Qf2 {[%emt 0:03:01]} Qb5 {[%emt 0:10:05]} 21. f4 {[%emt 0:01:20]} exf4 {[%emt 0:07:43]} 22. Bxf4 {[%emt 0:00:07]} Rxe1 {[%emt 0:05:45]} 23. Rxe1 {[%emt 0:00:08]} Re8 {[%emt 0:00:23]} 24. Rxe8+ {[%emt 0:00:33]} Qxe8 {[%emt 0:05:30]} 25. Qxc5 {[%emt 0:01:14]} bxc3 {[%emt 0:03:22]} 26. Qxc3 {[%emt 0:01:26]} Qa4 {[%emt 0:01:12]} 27. Bd2 {[%emt 0:02:04]} Qd1+ {[%emt 0:00:15]} 28. Be1 {[%emt 0:00:26]} Nc6 {[%emt 0:00:27]} 29. h3 {[%emt 0:00:38]} Nd4 {[%emt 0:02:46]} 30. Qxd4 {[%emt 0:01:03]} Qxe1+ {[%emt 0:00:06]} 31. Kh2 {[%emt 0:00:06]} Qa5 {[%emt 0:00:11]} 32. a3 {[%emt 0:01:10]} Qc7+ {[%emt 0:00:34]} 33. Kg1 {[%emt 0:00:10]} Qc1+ {[%emt 0:00:31]} 34. Bf1 {[%emt 0:00:48]} Qc7 {[%emt 0:03:13]} 35. Kg2 {[%emt 0:00:37]} Qc2+ {[%emt 0:02:01]} 36. Qf2 {[%emt 0:00:36]} Qa4 {[%emt 0:02:59]} 37. Be2 {[%emt 0:00:31]} Qc2 {[%emt 0:00:47]} 38. Bf1 {[%emt 0:00:30]} Qa4 {[%emt 0:00:07]} 39. Qc5 {[%emt 0:00:36]} a6 {[%emt 0:05:19]} 40. Be2 {[%emt 0:00:00]} Qb3 {[%emt 0:00:00]} 41. Qc3 {[%emt 0:18:33]} Qb6 {[%emt 0:02:50]} 42. Bf3 {[%emt 0:01:33]} Qe3 {[%emt 0:01:55]} 43. Qc2 {[%emt 0:08:09]} Qf4 {[%emt 0:03:42]} 44. b4 {[%emt 0:00:51]} Qd4 {[%emt 0:02:00]} 45. Qc8+ {[%emt 0:00:51]} Kh7 {[%emt 0:00:06]} 46. Qxa6 {[%emt 0:00:44]} Qb2+ {[%emt 0:00:21]} 47. Kg3 {[%emt 0:00:48]} Qe5+ {[%emt 0:00:36]} 48. Kg2 {[%emt 0:00:21]} Qb2+ {[%emt 0:00:07]} 49. Kg3 {[%emt 0:00:03]} Qe5+ {[%emt 0:00:06]} 50. Kg2 1/2-1/2

[Event "WYCC 2018 G18"]
[Site "Halkidiki"]
[Date "2018.10.24"]
[Round "6"]
[White "Priyanka, Kumari"]
[Black "Redondo Benavente, Ana"]
[Result "1/2-1/2"]
[ECO "C65"]
[WhiteElo "2005"]
[BlackElo "2055"]
[Annotator "NA"]
[PlyCount "72"]
[EventDate "2018.10.20"]
[EventType "swiss"]
[EventCountry "GRE"]
[SourceTitle "playchess.com"]
[Source "ChessBase"]
[SourceQuality "1"]
[TimeControl "40/5400+30:1800+30"]

1. e4 {[%emt 0:00:00]} e5 {[%emt 0:00:00]} 2. Nf3 {[%emt 0:00:07]} Nc6 {[%emt 0:00:00]} 3. Bb5 {[%emt 0:00:18]} Nf6 {[%emt 0:00:21]} 4. d3 {[%emt 0:00:42]} Bc5 {[%emt 0:00:16]} 5. c3 {[%emt 0:00:48]} O-O {[%emt 0:00:27]} 6. O-O {[%emt 0:00:07]} d6 {[%emt 0:00:18]} 7. Nbd2 {[%emt 0:00:28]} Ne7 {[%emt 0:02:40]} 8. d4 {[%emt 0:00:56]} exd4 {[%emt 0:00:19]} 9. cxd4 {[%emt 0:00:12]} Bb6 {[%emt 0:00:13]} 10. h3 {[%emt 0:01:07]} d5 {[%emt 0:02:44]} 11. e5 {[%emt 0:02:43]} Ne4 {[%emt 0:00:57]} 12. Bd3 {[%emt 0:02:25]} f5 {[%emt 0:01:06]} 13. exf6 {[%emt 0:07:15]} Nxf6 {[%emt 0:00:48]} 14. Nb3 {[%emt 0:03:02]} Bf5 {[%emt 0:10:56]} 15. Bxf5 {[%emt 0:18:14]} Nxf5 {[%emt 0:00:07]} 16. Bg5 {[%emt 0:01:00]} Nd6 {[%emt 0:14:11]} 17. Qd3 {[%emt 0:05:13]} Nde4 {[%emt 0:01:48]} 18. Rae1 {[%emt 0:05:04]} Qd6 {[%emt 0:04:42]} 19. Nbd2 {[%emt 0:05:31]} Nxd2 {[%emt 0:06:06]} 20. Nxd2 {[%emt 0:01:20]} Rae8 {[%emt 0:01:05]} 21. Bxf6 {[%emt 0:01:40]} Qxf6 {[%emt 0:01:06]} 22. Nf3 {[%emt 0:00:13]} c6 {[%emt 0:01:57]} 23. Ne5 {[%emt 0:03:20]} Qf4 {[%emt 0:10:02]} 24. Nf3 {[%emt 0:05:07]} Re4 {[%emt 0:03:48]} 25. Rd1 {[%emt 0:04:03]} Re6 {[%emt 0:07:43]} 26. Qd2 {[%emt 0:05:02]} Qf5 {[%emt 0:04:51]} 27. Rfe1 {[%emt 0:01:37]} Re4 {[%emt 0:05:31]} 28. Re2 {[%emt 0:11:38]} Bc7 {[%emt 0:01:16]} 29. Rde1 {[%emt 0:01:36]} Rfe8 {[%emt 0:01:59]} 30. Kf1 {[%emt 0:01:28]} Rxe2 {[%emt 0:04:53]} 31. Rxe2 {[%emt 0:00:11]} Rxe2 {[%emt 0:01:48]} 32. Kxe2 {[%emt 0:01:45]} h6 {[%emt 0:00:36]} 33. Qd3 {[%emt 0:00:47]} Qxd3+ {[%emt 0:02:33]} 34. Kxd3 {[%emt 0:00:06]} Kf7 {[%emt 0:00:04]} 35. g3 {[%emt 0:03:44]} Ke6 {[%emt 0:00:43]} 36. Nh4 {[%emt 0:01:47]} h5 {[%emt 0:03:47] Ke4 Ke5+} 1/2-1/2

[Event "WYCC 2018 G18"]
[Site "Halkidiki"]
[Date "2018.10.24"]
[Round "6"]
[White "Hamedi Nia, Vesal"]
[Black "Martynkova, Olena"]
[Result "1/2-1/2"]
[ECO "A80"]
[WhiteElo "1987"]
[BlackElo "2188"]
[Annotator "NA RC"]
[PlyCount "194"]
[EventDate "2018.10.20"]
[EventType "swiss"]
[EventCountry "GRE"]
[SourceTitle "playchess.com"]
[Source "ChessBase"]
[SourceQuality "1"]
[TimeControl "40/5400+30:1800+30"]

1. d4 {[%emt 0:00:00]} f5 {[%emt 0:00:10]} 2. Nf3 {[%emt 0:00:41]} Nf6 {[%emt 0:01:28]} 3. e3 {[%emt 0:03:58]} e6 {[%emt 0:01:39]} 4. Be2 {[%emt 0:01:47]} d5 {[%emt 0:06:29]} 5. b3 {[%emt 0:04:31]} Bb4+ {[%emt 0:07:06]} 6. c3 {[%emt 0:02:51]} Bd6 {[%emt 0:00:10]} 7. O-O {[%emt 0:02:39]} Nbd7 {[%emt 0:12:12]} 8. c4 {[%emt 0:04:03]} c6 {[%emt 0:01:36]} 9. Bb2 {[%emt 0:04:57]} O-O {[%emt 0:04:52]} 10. Nbd2 {[%emt 0:04:21]} Ne4 {[%emt 0:07:31]} 11. Ne5 {[%emt 0:07:12]} Qe7 {[%emt 0:18:47]} 12. Qc2 {[%emt 0:12:03] A84: Dutch Defence: 2 c4 Miscellaneous} Nxd2 $146 {[%emt 0:05:52]} ({Predecessor:} 12... Ndf6 13. f3 Nxd2 14. Qxd2 Bd7 15. Bd3 Rfd8 16. c5 Bc7 17. b4 Be8 18. Bc3 Bxe5 19. dxe5 {½-½ (78) Sidorov,A (2292)-Sveshnikov,E (2504) Sochi 2016}) 13. Qxd2 {[%emt 0:00:36]} g5 {[%emt 0:04:20]} 14. Kh1 {[%emt 0:16:25]} Qg7 {[%emt 0:04:37]} 15. Nd3 {[%emt 0:10:17]} Rf6 {[%emt 0:07:26]} 16. g3 {[%emt 0:04:50]} Rh6 {[%emt 0:05:06]} 17. Kg2 {[%emt 0:00:24]} Nf6 {[%emt 0:00:27]} 18. f3 {[%emt 0:03:12]} Bd7 {[%emt 0:02:18]} 19. Rh1 {[%emt 0:02:39]} g4 {[%emt 0:01:27]} 20. Ne5 {[%emt 0:01:19]} gxf3+ {[%emt 0:01:27]} 21. Bxf3 {[%emt 0:00:16]} Be8 {[%emt 0:02:16]} 22. Raf1 {[%emt 0:04:56]} Bh5 {[%emt 0:00:11]} 23. Nd3 {[%emt 0:03:07]} Kh8 {[%emt 0:01:16]} 24. Nf4 {[%emt 0:00:12]} Bxf4 {[%emt 0:01:22]} 25. exf4 {[%emt 0:00:04]} Bxf3+ {[%emt 0:00:20]} 26. Rxf3 {[%emt 0:00:04]} Ne4 {[%emt 0:00:25]} 27. Qe3 {[%emt 0:01:30]} Qg4 {[%emt 0:00:43]} 28. Bc3 {[%emt 0:03:27]} Rg8 {[%emt 0:01:03]} 29. Be1 {[%emt 0:01:14]} Qh3+ {[%emt 0:01:13]} 30. Kg1 {[%emt 0:00:02]} Rhg6 {[%emt 0:00:11]} 31. Qe2 {[%emt 0:01:06]} Rg4 {[%emt 0:00:41]} 32. Qg2 {[%emt 0:00:34]} Qh5 {[%emt 0:00:25]} 33. Kf1 {[%emt 0:00:25]} Qh6 {[%emt 0:00:36]} 34. a4 {[%emt 0:00:42]} Qg7 {[%emt 0:00:23]} 35. Qg1 {[%emt 0:00:30]} Qc7 {[%emt 0:00:24]} 36. Qe3 {[%emt 0:00:24]} R4g7 {[%emt 0:00:48]} 37. c5 {[%emt 0:00:36]} b6 {[%emt 0:00:19]} 38. b4 {[%emt 0:00:20]} bxc5 {[%emt 0:00:50]} 39. dxc5 {[%emt 0:00:27]} e5 {[%emt 0:00:29]} 40. fxe5 {[%emt 0:00:00]} Qxe5 {[%emt 0:00:00]} 41. Bc3 {[%emt 0:01:36]} Qxc3 {[%emt 0:03:54]} 42. Qxc3 {[%emt 0:04:21]} Nxc3 {[%emt 0:00:06]} 43. Rxc3 {[%emt 0:00:03]} Rb8 {[%emt 0:04:23]} 44. b5 {[%emt 0:08:40]} cxb5 {[%emt 0:00:56]} 45. axb5 {[%emt 0:00:06]} Rxb5 {[%emt 0:00:14]} 46. Ke2 {[%emt 0:02:14]} Rc7 {[%emt 0:02:23]} 47. c6 {[%emt 0:00:17]} Kg7 {[%emt 0:01:44]} 48. Kd3 {[%emt 0:03:01]} Kf6 {[%emt 0:03:00]} 49. Kd4 {[%emt 0:05:47]} Ke6 {[%emt 0:00:17]} 50. Rf1 {[%emt 0:00:50]} Rb6 {[%emt 0:02:22]} 51. Re3+ {[%emt 0:05:15]} Kd6 {[%emt 0:00:15]} 52. Rxf5 {[%emt 0:00:16]} Rb4+ {[%emt 0:00:19]} 53. Kd3 {[%emt 0:01:28]} Rb3+ {[%emt 0:07:54]} 54. Kd4 {[%emt 0:00:13]} Rxe3 {[%emt 0:00:13]} 55. Kxe3 {[%emt 0:00:01]} Kxc6 {[%emt 0:00:37]} 56. Kd4 {[%emt 0:00:33]} Rd7 {[%emt 0:00:38]} 57. Rf6+ {[%emt 0:01:16]} Kb5 {[%emt 0:00:48]} 58. Rf1 {[%emt 0:02:14]} a5 {[%emt 0:01:13]} 59. Rb1+ {[%emt 0:00:20]} Ka6 {[%emt 0:01:26]} 60. Ra1 {[%emt 0:00:51]} h5 {[%emt 0:04:44]} 61. h4 {[%emt 0:01:51]} Rg7 {[%emt 0:02:03]} 62. Kxd5 {[%emt 0:00:28]} Rxg3 {[%emt 0:00:12]} 63. Kc5 {[%emt 0:00:26]} Rc3+ {[%emt 0:00:16]} 64. Kd4 {[%emt 0:00:29]} Rh3 {[%emt 0:00:07]} 65. Kc5 {[%emt 0:00:12]} Rxh4 {[%emt 0:01:13]} 66. Rf1 {[%emt 0:00:32]} a4 {[%emt 0:01:01]} 67. Rf8 {[%emt 0:00:53]} Rg4 {[%emt 0:01:10]} 68. Rh8 {[%emt 0:00:26]} h4 $2 {[%emt 0:00:28]} 69. Kc6 $1 {[%emt 0:00:27]} Rg6+ {[%emt 0:01:06]} 70. Kc5 {[%emt 0:00:08]} Rg4 {[%emt 0:00:14]} (70... Rg5+ $19 71. Kb4 Rg4+ 72. Kc5 Kb7 73. Rh7+ Kc8) 71. Kc6 {[%emt 0:00:03]} Ka5 {[%emt 0:00:12]} 72. Kc5 $1 {[%emt 0:00:18]} Rg5+ {[%emt 0:00:03]} 73. Kc4 {[%emt 0:00:15]} Rg4+ {[%emt 0:00:49]} 74. Kc5 {[%emt 0:00:04]} Ka6 {[%emt 0:00:37]} 75. Kc6 {[%emt 0:00:05]} Rc4+ {[%emt 0:00:04]} 76. Kd5 {[%emt 0:00:07]} Rc2 {[%emt 0:00:50]} 77. Rxh4 {[%emt 0:00:45]} Kb5 {[%emt 0:00:02]} 78. Rh8 {[%emt 0:01:38]} Rd2+ {[%emt 0:00:06]} 79. Ke4 {[%emt 0:00:10]} Kc4 $2 {[%emt 0:01:20]} (79... a3 80. Rb8+ Kc4) 80. Rc8+ {[%emt 0:00:19]} Kb3 {[%emt 0:00:02]} 81. Ke3 {[%emt 0:01:15]} Rd5 {[%emt 0:00:08]} 82. Rb8+ {[%emt 0:00:42]} Kc3 {[%emt 0:01:33]} 83. Rc8+ {[%emt 0:00:23]} Kb2 $19 {[%emt 0:00:14]} 84. Rb8+ {[%emt 0:00:44]} Ka2 {[%emt 0:00:27]} 85. Rb4 {[%emt 0:00:37]} a3 {[%emt 0:01:15]} 86. Ke2 {[%emt 0:00:55]} Rd8 {[%emt 0:00:32]} 87. Rb5 {[%emt 0:00:27]} Rd4 {[%emt 0:00:12]} 88. Rb6 {[%emt 0:00:30]} Ka1 {[%emt 0:00:45]} 89. Rb3 {[%emt 0:00:10]} a2 {[%emt 0:00:27]} 90. Rb5 {[%emt 0:00:17]} Rh4 {[%emt 0:00:36]} 91. Kd2 {[%emt 0:00:08]} Rh1 {[%emt 0:00:13]} 92. Kc2 {[%emt 0:00:14]} Rb1 {[%emt 0:00:17]} 93. Ra5 {[%emt 0:00:42]} Rb2+ {[%emt 0:00:21]} 94. Kc1 {[%emt 0:00:07]} Rb1+ {[%emt 0:00:21]} 95. Kc2 {[%emt 0:00:04]} Rb6 {[%emt 0:00:06]} 96. Rc5 {[%emt 0:00:33]} Rb2+ {[%emt 0:00:19]} 97. Kc1 {[%emt 0:00:03]} Rb1+ {[%emt 0:00:06]} 1/2-1/2

[Event "WYCC 2018 G18"]
[Site "Halkidiki"]
[Date "2018.10.24"]
[Round "6"]
[White "Stashis, Anna"]
[Black "Nistor, Valentina"]
[Result "1-0"]
[ECO "C45"]
[WhiteElo "1979"]
[BlackElo "1881"]
[Annotator "NA"]
[PlyCount "111"]
[EventDate "2018.10.20"]
[EventType "swiss"]
[EventCountry "GRE"]
[SourceTitle "playchess.com"]
[Source "ChessBase"]
[SourceQuality "1"]
[TimeControl "40/5400+30:1800+30"]

1. e4 {[%emt 0:00:00]} e5 {[%emt 0:00:00]} 2. Nf3 {[%emt 0:00:00]} Nc6 {[%emt 0:00:00]} 3. d4 {[%emt 0:00:00]} exd4 {[%emt 0:00:00]} 4. Nxd4 {[%emt 0:00:00]} Nf6 {[%emt 0:00:33]} 5. Nxc6 {[%emt 0:00:09]} bxc6 {[%emt 0:00:42]} 6. e5 {[%emt 0:00:18]} Nd5 {[%emt 0:01:52]} 7. c4 {[%emt 0:01:21]} Nb6 {[%emt 0:03:04]} 8. Bd3 {[%emt 0:08:46]} Bb4+ {[%emt 0:13:04]} 9. Nc3 {[%emt 0:32:43]} Qh4 {[%emt 0:14:24]} 10. O-O {[%emt 0:08:43]} Bxc3 {[%emt 0:13:51]} 11. bxc3 {[%emt 0:00:06]} Ba6 {[%emt 0:00:53]} 12. Re1 {[%emt 0:11:20]} h5 {[%emt 0:17:06]} 13. c5 {[%emt 0:11:23]} Bxd3 {[%emt 0:07:17]} 14. cxb6 {[%emt 0:02:30]} Bc4 {[%emt 0:06:08]} 15. bxc7 {[%emt 0:02:48]} Bd5 {[%emt 0:01:52]} 16. Re3 {[%emt 0:03:40]} Qc4 {[%emt 0:08:51]} 17. Rb1 {[%emt 0:07:59]} Qxa2 {[%emt 0:04:14]} 18. Rb8+ {[%emt 0:01:22]} Ke7 {[%emt 0:00:09]} 19. Rxh8 {[%emt 0:03:58]} Rxh8 {[%emt 0:00:08]} 20. Qd4 {[%emt 0:00:42]} Qa5 {[%emt 0:02:05]} 21. c4 {[%emt 0:01:26]} Qxc7 {[%emt 0:01:18]} 22. cxd5 {[%emt 0:00:17]} cxd5 {[%emt 0:00:24]} 23. Rc3 {[%emt 0:00:40]} Qa5 {[%emt 0:01:23]} 24. Ba3+ {[%emt 0:00:43]} Ke6 {[%emt 0:00:17]} 25. h3 {[%emt 0:00:28]} Rb8 {[%emt 0:00:49]} 26. Bd6 {[%emt 0:00:31]} Qa1+ {[%emt 0:01:19]} 27. Kh2 {[%emt 0:00:11]} Rb3 {[%emt 0:00:28]} 28. Rd3 {[%emt 0:00:42]} Qxd4 {[%emt 0:00:15]} 29. Rxd4 {[%emt 0:00:01]} a5 {[%emt 0:00:40]} 30. Ra4 {[%emt 0:00:18]} Rb5 {[%emt 0:00:43]} 31. f4 {[%emt 0:00:44]} g6 {[%emt 0:00:47]} 32. Kg3 {[%emt 0:00:35]} Kf5 {[%emt 0:00:13]} 33. Kh4 {[%emt 0:00:26]} f6 {[%emt 0:00:43]} 34. exf6 {[%emt 0:00:28]} Kxf6 {[%emt 0:00:10]} 35. Be5+ {[%emt 0:00:18]} Kf7 {[%emt 0:00:57]} 36. Bc3 {[%emt 0:00:36]} Rc5 {[%emt 0:00:41]} 37. Bxa5 {[%emt 0:00:08]} d4 {[%emt 0:00:31]} 38. Bb6 {[%emt 0:01:08]} Rc2 {[%emt 0:00:11]} 39. g4 {[%emt 0:00:57]} hxg4 {[%emt 0:00:44]} 40. hxg4 {[%emt 0:00:00]} d3 {[%emt 0:00:00]} 41. Rd4 {[%emt 0:00:25]} d2 {[%emt 0:12:07]} 42. Rxd7+ {[%emt 0:06:59]} Ke6 {[%emt 0:00:20]} 43. Rd3 {[%emt 0:00:26]} Kf6 {[%emt 0:05:01]} 44. Bd8+ {[%emt 0:07:36]} Kf7 {[%emt 0:01:19]} 45. Ba5 {[%emt 0:00:09]} Rc5 {[%emt 0:00:41]} 46. Bxd2 {[%emt 0:00:22]} g5+ {[%emt 0:01:08]} 47. fxg5 {[%emt 0:00:24]} Kg6 {[%emt 0:01:59]} 48. Rd6+ {[%emt 0:01:44]} Kg7 {[%emt 0:00:22]} 49. Kh5 {[%emt 0:01:32]} Rc2 {[%emt 0:00:21]} 50. Rd7+ {[%emt 0:00:43]} Kg8 {[%emt 0:00:11]} 51. Bf4 {[%emt 0:01:42]} Re2 {[%emt 0:00:53]} 52. Bd6 {[%emt 0:06:52]} Re6 {[%emt 0:01:15]} 53. Be7 {[%emt 0:00:53]} Rc6 {[%emt 0:02:26]} 54. Bf6 {[%emt 0:00:26]} Re6 {[%emt 0:01:32]} 55. Kg6 {[%emt 0:00:22]} Re8 {[%emt 0:00:04]} 56. Rh7 {[%emt 0:00:22]} 1-0

[Event "WYCC 2018 G18"]
[Site "Halkidiki"]
[Date "2018.10.24"]
[Round "6"]
[White "Manova, Ivana"]
[Black "Nguyen, Thi Minh Thu"]
[Result "1-0"]
[ECO "C00"]
[WhiteElo "1951"]
[BlackElo "1849"]
[Annotator "NA"]
[PlyCount "37"]
[EventDate "2018.10.20"]
[EventType "swiss"]
[EventCountry "GRE"]
[SourceTitle "playchess.com"]
[Source "ChessBase"]
[SourceQuality "1"]
[TimeControl "40/5400+30:1800+30"]

1. e4 {[%emt 0:00:00]} e6 {[%emt 0:00:00]} 2. d4 {[%emt 0:00:00]} c5 {[%emt 0:00:08]} 3. d5 {[%emt 0:00:29]} exd5 {[%emt 0:00:10]} 4. exd5 {[%emt 0:00:05]} d6 {[%emt 0:00:06]} 5. Nc3 {[%emt 0:02:04]} g6 {[%emt 0:01:53]} 6. Nf3 {[%emt 0:01:56]} Bg7 {[%emt 0:00:50]} 7. Be2 {[%emt 0:09:11]} Ne7 {[%emt 0:00:33]} 8. O-O {[%emt 0:03:08]} O-O {[%emt 0:00:40]} 9. Bf4 {[%emt 0:03:52]} Bf5 {[%emt 0:02:19]} 10. Qd2 {[%emt 0:02:44]} a6 {[%emt 0:02:31]} 11. a4 {[%emt 0:02:31]} b6 {[%emt 0:01:11]} 12. Nh4 {[%emt 0:12:01]} Bc8 {[%emt 0:08:02]} 13. Ne4 {[%emt 0:05:15]} Bxb2 {[%emt 0:10:27]} 14. Rab1 {[%emt 0:00:42]} Be5 {[%emt 0:00:07]} 15. Bxe5 {[%emt 0:01:46]} dxe5 {[%emt 0:00:09]} 16. Qh6 {[%emt 0:01:30]} f6 {[%emt 0:00:08]} 17. d6 {[%emt 0:03:28]} Nf5 {[%emt 0:02:02]} 18. Bc4+ {[%emt 0:00:20]} Kh8 {[%emt 0:00:06]} 19. Nxg6# {[%emt 0:00:22]} 1-0